bitfinex/quotes_ETHUSD_20241119
["timestamp","ask_amount","ask_price","bid_price","bid_amount"]
[1731993372393,3.18401,3140.7,3140.4,0.3181]
[1731993372558,3.51647063,3140.7,3140.4,0.3181]
[1731993372759,0.04284975,3140.6,3140.4,0.3181]
[1731993376805,0.04284975,3140.6,3140.4,0.68853603]
[1731993377295,0.04283093,3140.5,3140.4,0.68853603]
[1731993377483,0.04283093,3140.5,3140.4,0.3181]
[1731993377690,0.33245899,3140.6,3140.4,0.3181]
[1731993377890,0.04283093,3140.5,3140.4,0.3181]
[1731993378526,0.04283093,3140.5,3140.4,0.23940582]
[1731993378750,0.04283093,3140.5,3140.4,0.6682364]
[1731993378951,0.04283093,3140.5,3140.4,0.23940582]
[1731993385819,0.04283093,3140.5,3140.4,3.42370582]
[1731993386732,3.18363,3141.1,3140.4,3.42370582]
[1731993386937,0.04281886,3140.5,3140.4,3.42370582]
[1731993387132,3.18363,3141.1,3140.4,4.1709494]
[1731993387637,3.22662398,3141.0,3140.4,4.1709494]
[1731993390890,0.04290398,3141.0,3140.8,0.16071164]
[1731993391193,3.1836,3141.1,3140.9,0.16071164]
[1731993392295,0.4541,3141.5,3140.8,0.16071164]
[1731993392296,3.18354,3141.2,3140.8,0.16071164]
[1731993392487,3.1838,3140.9,3140.8,0.16071164]
[1731993393160,3.1838,3140.9,3140.5,0.16071164]
[1731993395061,3.18353,3141.2,3140.8,0.16071164]
[1731993395397,3.63743,3141.4,3140.8,0.16071164]
[1731993395694,3.1837,3141.0,3140.8,0.16071164]
[1731993396048,3.1837,3141.0,3140.5,0.16071164]
[1731993396591,3.6378,3141.0,3140.5,0.16071164]
[1731993396949,6.36036,3142.6,3140.8,0.16071164]
[1731993396950,6.82081,3141.4,3140.8,0.16071164]
[1731993397156,3.63742,3141.4,3140.8,0.16071164]
[1731993397361,0.4541,3141.4,3141.0,0.16071164]
[1731993397559,3.6374,3141.4,3141.0,0.16071164]
[1731993398369,3.6374,3141.4,3140.8,0.16071164]
[1731993399004,3.18313,3141.6,3141.0,3.34434164]
[1731993399302,3.18313,3141.6,3141.2,0.16071164]
[1731993399477,0.33244477,3141.5,3141.2,0.16071164]
[1731993399655,3.18313,3141.6,3141.2,0.16071164]
[1731993399860,6.63701,3141.8,3141.2,0.16071164]
[1731993400183,3.18299,3141.7,3141.2,0.16071164]
[1731993401011,3.1831,3141.6,3141.2,0.16071164]
[1731993401513,3.18281,3141.9,3141.4,0.16071164]
[1731993401811,3.63682,3142.0,3141.4,0.16071164]
[1731993401812,0.4541,3142.0,3141.6,0.16071164]
[1731993402013,3.63688,3142.0,3141.6,0.16071164]
[1731993403683,3.18257,3142.2,3141.8,0.16071164]
[1731993404998,3.18269,3142.0,3141.7,0.8964]
[1731993405712,0.04168745,3141.9,3141.7,0.8964]
[1731993406087,0.04168745,3141.9,3141.1,1.2207]
[1731993406088,3.22455745,3141.9,3141.1,1.2207]
[1731993406426,3.22455745,3141.9,3141.3,0.3181]
[1731993406427,3.1829,3141.8,3141.3,0.3181]
[1731993406591,3.18299,3141.7,3141.3,0.3181]
[1731993406790,3.22468141,3141.7,3141.3,0.3181]
[1731993407283,0.04169141,3141.7,3141.3,0.3181]
[1731993407635,3.1827,3142.0,3141.5,0.3181]
[1731993408235,0.04170192,3141.9,3141.5,0.3181]
[1731993408383,0.04170192,3141.9,3141.6,0.4690779]
[1731993410425,0.04170192,3141.9,3141.7,0.3181]
[1731993410736,0.04170192,3141.9,3141.8,0.8778]
[1731993410941,0.4535,3142.3,3141.8,1.1959]
[1731993410942,3.18239,3142.3,3141.8,1.1959]
[1731993412011,3.1825,3142.2,3141.8,1.1959]
[1731993412260,3.18265,3142.1,3141.8,1.1959]
[1731993412437,3.63615,3142.1,3141.5,1.1959]
[1731993412596,3.18275,3142.0,3141.5,1.1959]
[1731993412937,3.18275,3142.0,3141.5,1.633826]
[1731993413299,3.18265,3142.1,3141.5,1.1959]
[1731993413498,3.18265,3142.1,3141.5,4.37899]
[1731993413804,3.18265,3142.1,3141.7,0.3181]
[1731993417825,3.18239,3142.3,3141.7,0.3181]
[1731993417826,3.18248,3142.2,3141.7,0.3181]
[1731993418137,3.1826,3142.1,3141.7,0.3181]
[1731993418726,6.36504,3142.2,3141.7,0.3181]
[1731993418929,3.18261,3142.1,3141.7,0.3181]
[1731993419266,3.18278,3142.0,3141.7,0.3181]
[1731993419475,4.49596626,3142.2,3141.7,0.3181]
[1731993419802,3.08555525,3142.2,3141.7,0.3181]
[1731993420361,3.18258,3142.1,3141.7,0.3181]
[1731993420671,3.22432998,3142.1,3141.7,0.3181]
[1731993423071,0.04174998,3142.1,3141.7,0.3181]
[1731993423457,3.18249,3142.2,3141.7,0.3181]
[1731993423670,0.04173297,3142.0,3141.7,0.3181]
[1731993423872,0.23553863,3141.9,3141.7,0.755995]
[1731993424165,0.04171595,3141.9,3141.7,0.755995]
[1731993424340,3.18238,3142.3,3141.7,0.755995]
[1731993424537,0.2355882,3142.2,3141.9,0.3181]
[1731993424797,0.2355882,3142.1,3141.9,0.3181]
[1731993424987,3.18238,3142.3,3141.9,0.3181]
[1731993424988,0.2355882,3142.0,3141.9,0.3181]
[1731993426248,0.56803001,3142.0,3141.9,0.3181]
[1731993426450,0.56803001,3142.0,3141.5,0.3181]
[1731993426451,1.88151627,3142.0,3141.5,0.3181]
[1731993426688,3.18309,3141.6,3141.5,0.3181]
[1731993426997,3.4186782,3141.6,3141.5,0.3181]
[1731993427162,3.18348,3141.3,3141.1,0.3181]
[1731993427346,3.18349,3141.2,3141.1,0.3181]
[1731993427552,3.41922334,3141.2,3141.1,0.3181]
[1731993428052,5.1862096,3141.2,3141.1,0.3181]
[1731993428252,3.18359,3141.1,3141.0,0.01877]
[1731993428605,3.18481,3139.9,3139.8,0.8315]
[1731993428815,3.18481,3139.9,3139.3,0.8315]
[1731993429109,3.1846,3140.2,3139.5,3.18514]
[1731993429315,3.1846,3140.2,3139.7,0.3181]
[1731993429975,3.41992543,3140.1,3139.4,3.613748]
[1731993430162,3.18445,3140.3,3139.5,3.9482248]
[1731993430362,3.18431,3140.4,3139.6,3.18504]
[1731993430609,0.23510271,3140.3,3139.6,3.62270728]
[1731993431106,0.4535,3140.2,3139.3,0.8315]
[1731993431305,3.18511,3139.7,3138.9,3.18579]
[1731993431480,3.18511,3139.7,3139.0,0.8486]
[1731993431663,3.18511,3139.7,3139.1,0.403439]
[1731993432973,0.4535,3140.2,3139.1,3.589039]
[1731993433163,0.4535,3140.2,3139.2,0.4437639]
[1731993433164,3.18492,3139.8,3139.2,0.4437639]
[1731993433389,3.22623341,3139.7,3139.2,0.4437639]
[1731993433603,3.18512,3139.6,3139.1,0.403439]
[1731993434699,0.04095707,3139.5,3139.1,0.403439]
[1731993435406,3.18512,3139.6,3139.1,0.403439]
[1731993435616,3.18529,3139.5,3139.0,0.8486]
[1731993435901,0.04094003,3139.4,3138.9,3.18575]
[1731993436074,0.04094003,3139.4,3139.0,0.318575]
[1731993436282,3.18511,3139.6,3139.0,0.318575]
[1731993436489,3.18522,3139.5,3138.7,3.18603]
[1731993436692,3.18522,3139.5,3138.6,0.869]
[1731993436693,3.18547,3139.3,3138.6,4.05508]
[1731993436922,3.18522,3139.5,3138.7,3.18602]
[1731993437117,0.04090595,3139.2,3138.7,3.91015]
[1731993437410,3.18537,3139.4,3138.7,3.91015]
[1731993437611,0.04092299,3139.3,3138.8,0.777915]
[1731993438169,0.4765,3139.2,3138.6,3.0]
[1731993438515,0.4765,3139.2,3138.3,39.03403]
[1731993438516,3.18588,3138.9,3138.3,0.8476]
[1731993438719,0.4765,3139.2,3137.9,0.8476]
[1731993438720,3.18573,3139.0,3137.9,0.8476]
[1731993438925,3.18603,3138.7,3137.9,4.437842]
[1731993439075,3.18603,3138.7,3138.0,3.1867]
[1731993439270,0.04078558,3138.6,3137.9,1.251052]
[1731993439516,0.04078558,3138.6,3137.9,3.93280818]
[1731993439823,3.18584,3138.9,3138.0,0.8476]
[1731993439995,0.04079204,3138.8,3138.2,3.1865]
[1731993440514,3.66203,3139.2,3138.2,0.777084]
[1731993440715,3.18522,3139.5,3138.3,1.3976]
[1731993440871,0.04084317,3139.1,3138.8,3.18584]
[1731993441083,0.04084317,3139.1,3138.9,0.8476]
[1731993441288,3.18522,3139.5,3138.9,0.8476]
[1731993441535,0.04082656,3139.0,3138.9,0.8476]
[1731993441694,3.18522,3139.5,3138.9,1.250944]
[1731993442028,0.04089473,3139.4,3138.9,4.03342]
[1731993442701,0.04089473,3139.4,3139.2,3.18551]
[1731993442902,0.04089473,3139.4,3139.3,4.10442]
[1731993443117,3.18475,3140.0,3139.3,0.919]
[1731993443446,3.18505,3139.7,3138.8,1.469]
[1731993443638,0.04094874,3139.6,3139.0,3.18565]
[1731993443948,3.1849,3139.9,3139.1,3.18552]
[1731993444234,3.22591281,3139.8,3139.1,3.18552]
[1731993444401,3.22591281,3139.8,3138.9,3.651312]
[1731993444402,3.1852,3139.6,3138.9,3.651312]
[1731993444603,0.0409317,3139.5,3138.9,3.18582]
[1731993445004,3.2261817,3139.5,3138.9,3.18582]
[1731993445234,3.2261817,3139.5,3139.0,0.3181]
[1731993445596,3.18535,3139.4,3139.0,0.3181]
[1731993445794,0.04090942,3139.3,3139.0,0.3181]
[1731993446113,0.04090942,3139.3,3138.9,0.3181]
[1731993447046,3.18554,3139.2,3138.9,0.3181]
[1731993447208,0.04087534,3139.1,3138.6,0.3181]
[1731993447407,3.18535,3139.4,3138.6,0.3181]
[1731993447408,3.18535,3139.4,3138.8,0.3181]
[1731993447713,0.04090942,3139.3,3138.8,0.3181]
[1731993447915,0.04090942,3139.3,3138.8,3.504]
[1731993448135,0.04090942,3139.3,3138.8,4.173012]
[1731993448302,3.18514,3139.6,3139.0,0.3181]
[1731993448502,0.04089238,3139.2,3139.0,3.5038]
[1731993448704,3.18514,3139.6,3139.0,3.5038]
[1731993448965,3.18481,3139.9,3139.4,0.3181]
[1731993450533,3.18493,3139.8,3139.4,0.3181]
[1731993450736,3.18539,3139.4,3139.1,0.3181]
[1731993451103,3.18522,3139.5,3139.1,0.3181]
[1731993451104,3.22631735,3139.3,3139.1,0.3181]
[1731993451621,0.04085735,3139.3,3138.9,0.3181]
[1731993451846,3.18522,3139.5,3138.9,3.50391]
[1731993452154,0.04087439,3139.4,3138.9,3.50391]
[1731993453214,3.18543,3139.3,3139.0,0.3181]
[1731993453409,0.04084031,3139.2,3139.0,0.3181]
[1731993453660,3.18523,3139.5,3139.0,0.3181]
[1731993453858,3.18547,3139.3,3139.0,0.3181]
[1731993454055,0.04083214,3139.2,3139.0,0.3181]
[1731993454241,3.18547,3139.3,3138.8,0.3181]
[1731993454582,3.18547,3139.3,3138.7,4.03592]
[1731993454583,0.04083214,3139.2,3139.0,0.3181]
[1731993454906,0.4765,3139.6,3139.1,3.50365]
[1731993455475,6.18494,3139.8,3139.2,3.18551]
[1731993455674,0.4765,3139.9,3139.3,3.18541]
[1731993455675,0.23497645,3139.7,3139.3,3.18541]
[1731993455874,6.18478,3140.0,3139.4,4.38222]
[1731993455875,0.23497645,3139.8,3139.4,4.38222]
[1731993456041,0.23498907,3139.9,3139.4,4.38222]
[1731993456387,0.23529569,3139.8,3139.4,0.3181]
[1731993456555,3.01,3140.4,3138.8,0.3181]
[1731993456556,3.66172,3139.5,3138.8,0.3181]
[1731993456756,0.23529569,3139.4,3138.8,0.3181]
[1731993456957,0.23534039,3139.3,3139.0,0.3181]
[1731993457159,3.18512,3139.6,3139.0,0.3181]
[1731993457374,0.23562189,3139.5,3139.0,0.3181]
[1731993457596,0.23562189,3139.4,3139.0,0.3181]
[1731993457808,0.23562189,3139.3,3139.0,0.3181]
[1731993458015,3.18526,3139.5,3138.9,0.3181]
[1731993458317,0.23560185,3139.4,3138.9,0.3181]
[1731993458513,0.23560185,3139.3,3138.9,0.3181]
[1731993458667,0.23560185,3139.2,3138.9,0.3181]
[1731993459019,0.23560185,3139.1,3138.9,0.3181]
[1731993459222,0.23609035,3139.0,3138.9,0.3181]
[1731993459512,0.23609714,3139.0,3138.9,0.3181]
[1731993460082,3.18534,3139.4,3138.9,0.3181]
[1731993460285,3.1856,3139.2,3139.0,0.3181]
[1731993460483,0.23611925,3139.1,3139.0,0.3181]
[1731993460885,3.42173925,3139.1,3139.0,0.3181]
[1731993461310,3.42173925,3139.1,3138.8,0.3181]
[1731993461520,0.23611925,3139.0,3138.8,0.3181]
[1731993461721,0.23611925,3138.9,3138.8,0.3181]
[1731993462691,3.18546,3139.3,3138.8,0.3181]
[1731993462913,0.4765,3139.8,3138.8,0.3181]
[1731993462914,0.23618601,3139.2,3138.8,0.3181]
[1731993463126,0.23619087,3139.1,3138.8,0.3181]
[1731993463317,0.23619087,3139.0,3138.8,0.3181]
[1731993463612,0.23619087,3138.9,3138.8,0.3181]
[1731993463798,0.27644734,3138.9,3138.8,0.3181]
[1731993466352,0.04025647,3138.9,3138.8,0.756392]
[1731993466650,0.23633044,3138.9,3138.8,3.942322]
[1731993466930,0.27658691,3138.9,3138.8,3.942322]
[1731993467621,0.04025647,3138.9,3138.8,3.942322]
[1731993467800,3.18502,3139.7,3138.8,3.942322]
[1731993468004,0.27671273,3139.6,3139.2,1.1669]
[1731993468186,0.23633698,3139.5,3139.2,1.1669]
[1731993468530,0.27667232,3139.4,3139.2,1.1669]
[1731993468755,0.23633698,3139.3,3139.2,1.602156]
[1731993469231,0.27665529,3139.3,3139.2,1.602156]
[1731993469535,0.27665529,3139.3,3139.2,4.787676]
[1731993469838,0.04031831,3139.3,3139.2,4.787676]
[1731993470144,3.18444,3140.3,3139.2,4.787676]
[1731993470145,3.18484,3139.9,3139.2,4.787676]
[1731993470303,0.27672805,3139.3,3139.2,4.787676]
[1731993470489,3.18484,3139.9,3139.3,3.5035]
[1731993470825,3.18484,3139.9,3139.3,0.3181]
[1731993470826,3.46185939,3139.8,3139.3,0.3181]
[1731993471028,3.4215359,3139.7,3139.3,0.3181]
[1731993471186,3.18518,3139.6,3139.3,0.3181]
[1731993471389,0.2364959,3139.5,3139.3,0.3181]
[1731993471631,0.27684302,3139.4,3139.3,0.3181]
[1731993471826,0.2364959,3139.4,3139.3,0.3181]
[1731993473329,3.18524,3139.5,3139.3,0.3181]
[1731993473531,0.23652032,3139.4,3139.3,0.3181]
[1731993473699,0.27686563,3139.4,3139.3,0.3181]
[1731993474034,0.23652032,3139.4,3139.3,0.3181]
[1731993474243,0.27686563,3139.4,3139.3,0.3181]
[1731993474543,3.79491759,3139.4,3138.9,1.1472]
[1731993474833,3.42196032,3139.3,3138.9,1.1472]
[1731993475017,0.27684108,3139.2,3138.9,1.1472]
[1731993475332,0.23652032,3139.1,3138.9,1.1472]
[1731993475633,0.27680655,3139.0,3138.9,1.1472]
[1731993476150,0.27680655,3139.0,3138.7,3.18599]
[1731993476151,0.27680655,3139.0,3138.8,0.3181]
[1731993476308,0.23652032,3138.9,3138.8,0.3181]
[1731993476712,0.2767895,3138.9,3138.8,0.3181]
[1731993478445,0.04026918,3138.9,3138.8,0.3181]
[1731993478593,0.2363662,3138.9,3138.8,0.3181]
[1731993478794,0.27662859,3138.9,3138.8,0.3181]
[1731993479326,0.04026239,3138.9,3138.8,0.3181]
[1731993479496,0.04026239,3138.9,3138.8,0.75904348]
[1731993479694,0.4411,3139.3,3138.8,0.75904348]
[1731993479896,0.27669029,3139.2,3138.8,0.75904348]
[1731993480205,0.23638176,3139.1,3138.8,0.75904348]
[1731993480523,0.27665621,3139.0,3138.8,3.94496348]
[1731993480729,0.04027445,3139.0,3138.9,3.98832635]
[1731993480928,0.04027445,3139.0,3138.9,4.87452635]
[1731993481128,0.23640742,3139.0,3138.9,4.87452635]
[1731993481345,3.18518,3139.6,3138.9,4.87452635]
[1731993481646,3.18536,3139.4,3139.1,0.3181]
[1731993481828,0.27672589,3139.3,3139.1,0.3181]
[1731993482139,3.42192802,3139.2,3139.1,0.3181]
[1731993482295,0.48141787,3139.3,3139.1,0.3181]
[1731993482494,0.48141787,3139.3,3138.8,0.3181]
[1731993482495,0.23639048,3139.2,3138.8,0.3181]
[1731993482749,0.27667427,3139.1,3138.8,3.82316248]
[1731993483042,0.04028379,3139.1,3138.9,4.34707]
[1731993483247,3.18513,3139.6,3139.0,0.3181]
[1731993483447,3.62603,3139.8,3139.2,0.3181]
[1731993483448,0.27675788,3139.5,3139.2,0.3181]
[1731993483737,0.23640593,3139.4,3139.2,0.3181]
[1731993483940,0.04035195,3139.5,3139.2,0.3181]
[1731993484124,0.04031877,3139.3,3139.2,0.668482]
[1731993484326,0.23641825,3139.3,3139.2,4.697202]
[1731993484532,0.04031877,3139.3,3139.2,4.697202]
[1731993484713,3.18472,3140.0,3139.6,1.1613]
[1731993485065,0.27688393,3139.9,3139.6,0.3181]
[1731993485209,0.23646294,3139.8,3139.6,0.3181]
[1731993485540,0.27684986,3139.7,3139.6,0.3181]
[1731993485841,0.27684986,3139.7,3139.5,0.3181]
[1731993486159,0.23646294,3139.6,3139.5,0.3181]
[1731993486301,0.04038692,3139.7,3139.5,3.50331]
[1731993486502,3.18443,3140.3,3139.7,0.3181]
[1731993486700,3.18432,3140.4,3139.6,3.18503]
[1731993486701,0.2768126,3140.2,3139.9,0.3181]
[1731993486901,0.23634051,3140.1,3139.9,0.3181]
[1731993487113,0.27679574,3140.0,3139.9,0.3181]
[1731993487843,3.46159574,3140.0,3139.9,0.3181]
[1731993488060,3.90269574,3140.0,3139.9,0.3181]
[1731993488553,4.2353965,3140.0,3139.9,0.3181]
[1731993488839,3.18526,3139.5,3139.0,4.1613]
[1731993489016,0.04038924,3139.4,3139.0,4.896006]
[1731993489337,3.22570924,3139.4,3139.0,1.896006]
[1731993489539,3.22570924,3139.4,3139.0,1.1613]
[1731993489746,0.23613075,3139.3,3139.0,0.3181]
[1731993489901,3.22570924,3139.4,3138.8,0.3181]
[1731993490102,0.23611036,3139.3,3139.0,0.3181]
[1731993490301,0.0403511,3139.2,3139.0,0.3181]
[1731993490631,0.04033406,3139.1,3139.0,0.3181]
[1731993490801,0.4411,3139.5,3139.0,0.3181]
[1731993491145,3.18543,3139.3,3139.1,0.3181]
[1731993491372,0.23613272,3139.2,3139.1,0.3181]
[1731993491585,3.4619789,3139.2,3139.1,0.3181]
[1731993491729,0.2764589,3139.2,3139.1,0.3181]
[1731993493161,0.2764589,3139.2,3138.8,0.3181]
[1731993493389,0.23613272,3139.1,3138.8,0.72163248]
[1731993493589,3.22591618,3139.2,3138.8,0.72163248]
[1731993493776,0.0402921,3139.0,3138.8,0.3181]
[1731993494098,0.04027505,3138.9,3138.8,0.3181]
[1731993494408,3.18563,3139.1,3138.8,0.3181]
[1731993494567,0.4411,3139.5,3138.8,0.3181]
[1731993494568,0.04027505,3138.9,3138.8,0.3181]
[1731993494764,6.3709,3139.3,3138.8,0.3181]
[1731993494968,0.04027505,3138.9,3138.8,0.3181]
[1731993495244,3.62635,3139.5,3138.8,0.75345248]
[1731993495426,0.23611619,3139.4,3139.0,1.1837]
[1731993495708,0.23611619,3139.3,3139.0,1.1837]
[1731993495877,6.36993,3139.8,3139.2,0.3181]
[1731993496086,3.18512,3139.6,3139.2,0.3181]
[1731993496395,0.23613441,3139.5,3139.2,0.3181]
[1731993496637,0.23613441,3139.4,3139.2,0.3181]
[1731993496900,3.18495,3139.8,3139.2,3.50357]
[1731993497093,0.23615834,3139.7,3139.2,3.50357]
[1731993497302,0.23615834,3139.6,3139.2,3.50357]
[1731993497621,0.23615834,3139.5,3139.2,3.50357]
[1731993497809,3.18499,3139.8,3139.2,3.940487]
[1731993498014,3.42120084,3139.7,3139.2,0.755017]
[1731993498310,0.23616084,3139.6,3139.3,0.3181]
[1731993498541,0.23616084,3139.5,3139.3,0.3181]
[1731993498667,0.23616084,3139.4,3139.3,0.3181]
[1731993499084,0.23616084,3139.4,3139.1,0.3181]
[1731993499291,3.18504,3139.7,3139.3,0.3181]
[1731993499787,0.23615244,3139.6,3139.3,0.3181]
[1731993500089,0.23615244,3139.5,3139.3,0.3181]
[1731993500294,0.23615244,3139.4,3139.1,0.3181]
[1731993500505,0.23615244,3139.3,3139.1,0.72324]
[1731993500720,3.18515,3139.6,3139.1,0.72324]
[1731993500922,3.18539,3139.4,3139.1,0.3181]
[1731993501133,0.23613985,3139.3,3139.1,0.3181]
[1731993501426,0.23613985,3139.3,3138.7,1.1944]
[1731993501427,3.42165985,3139.2,3138.7,1.1944]
[1731993501631,0.44,3139.3,3138.7,1.1944]
[1731993501632,3.42176985,3139.1,3138.7,1.1944]
[1731993501945,0.23613985,3139.0,3138.7,1.1944]
[1731993502235,3.18563,3139.1,3138.7,1.1944]
[1731993502732,0.23608651,3139.0,3138.7,1.1944]
[1731993502893,3.18575,3139.0,3138.7,1.1944]
[1731993503283,0.23608762,3138.9,3138.7,1.1944]
[1731993503490,3.18575,3139.0,3138.8,0.3181]
[1731993503692,0.23606056,3138.9,3138.8,0.3181]
[1731993504385,3.18558,3139.2,3138.8,0.3181]
[1731993504619,0.23604097,3139.1,3138.9,0.3181]
[1731993504815,0.23604097,3139.0,3138.9,0.3181]
[1731993505706,0.23604097,3139.0,3138.7,0.3181]
[1731993505908,3.51841395,3139.1,3138.7,0.3181]
[1731993506107,0.23597256,3139.0,3138.7,0.3181]
[1731993506266,0.23597256,3138.9,3138.7,0.3181]
[1731993506480,3.51841395,3139.1,3138.7,0.3181]
[1731993506679,0.23595527,3139.0,3138.7,0.3181]
[1731993506990,0.23595527,3138.9,3138.7,0.79745762]
[1731993507177,3.51841395,3139.1,3138.7,0.79745762]
[1731993507377,0.23594622,3139.0,3138.7,0.79745762]
[1731993507604,0.33275395,3139.1,3138.7,0.79745762]
[1731993507801,0.23594293,3139.0,3138.7,0.79745762]
[1731993508013,0.23594293,3138.9,3138.7,0.79745762]
[1731993508223,0.33275395,3139.1,3138.7,0.79745762]
[1731993508393,0.23592327,3139.0,3138.7,0.79745762]
[1731993508593,0.33275395,3139.1,3138.7,0.79745762]
[1731993508925,0.23590819,3139.0,3138.8,0.3181]
[1731993509129,0.23590819,3138.9,3138.8,0.3181]
[1731993509924,3.18574,3139.0,3138.6,0.32420475]
[1731993510333,0.23589327,3138.9,3138.6,0.32420475]
[1731993510518,3.18591,3138.9,3138.6,0.32420475]
[1731993510722,0.04025484,3138.8,3138.6,0.32420475]
[1731993511257,0.04025484,3138.8,3138.6,0.00610475]
[1731993512595,0.04025484,3138.8,3138.6,0.67525723]
[1731993512797,3.51844395,3139.1,3138.6,0.67525723]
[1731993512999,0.04021514,3138.7,3138.6,0.67525723]
[1731993513200,3.51844395,3139.1,3138.6,0.67525723]
[1731993513422,0.04021514,3138.7,3138.6,0.67525723]
[1731993513940,0.33275395,3139.1,3138.6,3.86138723]
[1731993514141,0.04021876,3138.7,3138.6,3.86138723]
[1731993514313,0.33275395,3139.1,3138.6,3.86138723]
[1731993514501,0.0402699,3139.0,3138.6,3.86138723]
[1731993514707,0.0402699,3139.0,3138.8,0.3181]
[1731993515249,0.0402699,3139.0,3138.8,3.504]
[1731993515403,0.0402699,3139.0,3138.9,4.35562]
[1731993516106,3.18516,3139.6,3139.2,0.3181]
[1731993516357,0.2762599,3139.5,3139.2,0.668472]
[1731993516512,0.23590118,3139.4,3139.2,3.853982]
[1731993516844,3.18495,3139.8,3139.3,1.8737602]
[1731993517009,0.23596744,3139.7,3139.3,1.1698]
[1731993517204,0.23596744,3139.6,3139.3,1.1698]
[1731993517409,0.23596744,3139.5,3139.3,1.1698]
[1731993517609,0.23596744,3139.4,3139.3,1.1698]
[1731993518342,0.23596744,3139.4,3139.2,0.3181]
[1731993518542,0.23596744,3139.3,3139.2,0.3181]
[1731993519045,3.42138744,3139.3,3139.2,0.3181]
[1731993519206,3.42138744,3139.3,3138.9,0.3181]
[1731993519409,0.23596744,3139.2,3138.8,0.3181]
[1731993519606,0.23596744,3139.1,3138.8,0.3181]
[1731993519913,0.44,3139.4,3138.8,3.504]
[1731993519914,0.23596744,3139.0,3138.8,3.504]
[1731993520120,0.44,3139.4,3138.8,3.504]
[1731993520333,0.44,3139.4,3139.0,0.3181]
[1731993520533,0.23622551,3139.3,3139.0,0.3181]
[1731993520745,0.23622551,3139.2,3139.0,0.3181]
[1731993521055,0.23622551,3139.1,3139.0,0.3181]
[1731993523327,0.23622551,3139.1,3139.0,0.668491]
[1731993523709,0.23623555,3139.1,3139.0,0.668491]
[1731993524262,3.18526,3139.5,3139.0,0.668491]
[1731993524408,0.23621519,3139.4,3139.0,3.50382]
[1731993524607,0.23621519,3139.3,3139.1,0.3181]
[1731993524807,0.44,3139.6,3139.1,0.3181]
[1731993524808,0.23621519,3139.2,3139.1,0.3181]
[1731993525354,3.62514,3139.6,3139.1,0.668481]
[1731993525355,3.61135519,3139.6,3139.1,0.668481]
[1731993525547,3.61135519,3139.6,3139.1,0.3181]
[1731993525749,0.04037459,3139.5,3139.1,0.3181]
[1731993526353,0.04037459,3139.5,3139.1,3.50364]
[1731993526655,0.04037459,3139.5,3139.2,1.1999]
[1731993526960,0.04036387,3139.4,3139.2,4.38542]
[1731993527451,3.18491,3139.8,3139.2,4.38542]
[1731993527754,3.18503,3139.7,3139.2,1.1999]
[1731993527955,3.18513,3139.6,3139.2,1.1999]
[1731993528111,3.18522,3139.5,3139.2,1.1999]
[1731993528454,0.04036704,3139.4,3139.2,1.1999]
[1731993528963,0.04035046,3139.3,3139.2,0.3181]
[1731993529369,0.4217,3139.7,3139.2,0.3181]
[1731993529695,3.18523,3139.5,3139.2,0.3181]
[1731993529819,0.04036704,3139.4,3139.2,0.3181]
[1731993530026,0.04036704,3139.4,3139.0,0.3181]
[1731993530248,0.04036704,3139.4,3139.0,1.03916]
[1731993530465,0.04036704,3139.4,3139.0,4.22488]
[1731993531458,3.18514,3139.6,3139.0,4.22488]
[1731993532031,0.37311615,3139.5,3139.0,4.22488]
[1731993532261,3.55836615,3139.5,3139.0,0.3181]
[1731993532624,3.55836615,3139.5,3138.6,38.19219475]
[1731993532625,3.6074,3139.1,3138.7,0.3181]
[1731993533126,0.04029888,3139.0,3138.7,0.3181]
[1731993533824,3.22603888,3139.0,3138.6,0.00610475]
[1731993535120,3.18583,3138.9,3138.6,0.00610475]
[1731993535318,3.60773,3138.7,3138.6,0.00610475]
[1731993535559,0.46192646,3138.7,3138.6,0.00610475]
[1731993536176,3.64795646,3138.7,3138.6,0.00610475]
[1731993537576,3.88405488,3138.7,3138.6,0.00610475]
[1731993539833,0.69802488,3138.7,3138.6,0.00610475]
[1731993540039,0.27632488,3138.7,3138.6,0.00610475]
[1731993540342,3.88405488,3138.7,3138.6,0.00610475]
[1731993550155,3.46235488,3138.7,3138.6,0.00610475]
[1731993550358,3.88405488,3138.7,3138.6,0.00610475]
[1731993551724,7.44405488,3138.7,3138.6,0.00610475]
[1731993552004,12.90250248,3138.7,3138.6,0.00610475]
[1731993552310,7.44405488,3138.7,3138.6,0.00610475]
[1731993552459,12.89840583,3138.7,3138.6,0.00610475]
[1731993552658,7.44405488,3138.7,3138.6,0.00610475]
[1731993552958,7.53806936,3138.7,3138.6,0.00610475]
[1731993553460,12.99126277,3138.7,3138.6,0.00610475]
[1731993554999,7.53746409,3138.7,3138.6,0.00610475]
[1731993555409,12.98694436,3138.7,3138.6,0.00610475]
[1731993556005,13.31980256,3138.7,3138.6,0.00610475]
[1731993556409,13.31980256,3138.7,3138.6,4.75e-06]
[1731993556579,13.69975711,3138.7,3138.6,4.75e-06]
[1731993557182,8.25027684,3138.7,3138.6,4.75e-06]
[1731993557368,3.18735,3137.4,3137.2,0.9054]
[1731993557805,0.03949156,3137.3,3137.2,0.9054]
[1731993558171,0.03949156,3137.3,3136.8,3.50605]
[1731993558373,3.18746,3137.3,3136.8,1.287518]
[1731993558582,0.0394745,3137.2,3136.8,1.287518]
[1731993559000,3.18746,3137.3,3136.8,1.287518]
[1731993559335,0.0394745,3137.2,3136.8,1.287518]
[1731993559638,0.4146,3137.4,3136.6,0.823]
[1731993559928,3.18758,3137.2,3136.6,0.823]
[1731993560138,0.03943658,3137.1,3136.6,0.823]
[1731993560433,3.22711658,3137.1,3136.6,0.823]
[1731993560591,0.03943658,3137.1,3136.6,0.823]
[1731993561018,3.18763,3137.2,3136.6,0.823]
[1731993561219,0.03940865,3137.0,3136.6,0.823]
[1731993561384,0.03942571,3137.1,3136.6,0.823]
[1731993561604,0.03939158,3136.9,3136.6,0.823]
[1731993561787,0.03940865,3137.0,3136.6,0.823]
[1731993561991,0.03937452,3136.8,3136.6,0.823]
[1731993562293,0.03935745,3136.7,3136.6,4.01114]